Workbook

Sheet Resultaträkning
B1: Resultat Rapport
D3: FÖREGÅENDE PERIOD | E3: BUDGET | F3: INNEVARANDE PERIOD | H3: INNEVARANDE PERIOD SOM PROCENTANDEL AV FÖRSÄLJNINGEN | I3: PROCENTUELL FÖRÄNDRING JÄMFÖRT MED FÖREGÅENDE PERIOD | J3: PROCENTUELL FÖRÄNDRING JÄMFÖRT MED BUDGET
B4: Försäljningsvinst
B5: Produkt/tjänst 1 | D5: 40 | E5: 50 | F5: 45 | H5: =IFERROR(Försäljningsvinst[[#This Row],[Innevarande Period ]]/SUBTOTAL(109,Försäljningsvinst[[Innevarande Period ]]),0) -> 100.0% | I5: =IFERROR(Försäljningsvinst[[#This Row],[Innevarande Period ]]/Försäljningsvinst[[#This Row],[Föregående Period ]]-1,0) -> 12.5% | J5: =IFERROR(Försäljningsvinst[[#This Row],[Innevarande Period ]]/Försäljningsvinst[[#This Row],[Budget]]-1,0) -> -10.0%
B6: Produkt/tjänst 2 | H6: =IFERROR(Försäljningsvinst[[#This Row],[Innevarande Period ]]/SUBTOTAL(109,Försäljningsvinst[[Innevarande Period ]]),0) -> 0 | I6: =IFERROR(Försäljningsvinst[[#This Row],[Innevarande Period ]]/Försäljningsvinst[[#This Row],[Föregående Period ]]-1,0) -> 0 | J6: =IFERROR(Försäljningsvinst[[#This Row],[Innevarande Period ]]/Försäljningsvinst[[#This Row],[Budget]]-1,0) -> 0
B7: Produkt/tjänst 3 | H7: =IFERROR(Försäljningsvinst[[#This Row],[Innevarande Period ]]/SUBTOTAL(109,Försäljningsvinst[[Innevarande Period ]]),0) -> 0 | I7: =IFERROR(Försäljningsvinst[[#This Row],[Innevarande Period ]]/Försäljningsvinst[[#This Row],[Föregående Period ]]-1,0) -> 0 | J7: =IFERROR(Försäljningsvinst[[#This Row],[Innevarande Period ]]/Försäljningsvinst[[#This Row],[Budget]]-1,0) -> 0
B8: Produkt/tjänst 4 | H8: =IFERROR(Försäljningsvinst[[#This Row],[Innevarande Period ]]/SUBTOTAL(109,Försäljningsvinst[[Innevarande Period ]]),0) -> 0 | I8: =IFERROR(Försäljningsvinst[[#This Row],[Innevarande Period ]]/Försäljningsvinst[[#This Row],[Föregående Period ]]-1,0) -> 0 | J8: =IFERROR(Försäljningsvinst[[#This Row],[Innevarande Period ]]/Försäljningsvinst[[#This Row],[Budget]]-1,0) -> 0
B9: Summa | D9: =SUBTOTAL(109,Försäljningsvinst[[Föregående Period ]]) -> 40 | E9: =SUBTOTAL(109,Försäljningsvinst[Budget]) -> 50 | F9: =SUBTOTAL(109,Försäljningsvinst[[Innevarande Period ]]) -> 45 | H9: =IFERROR(Försäljningsvinst[[#Totals],[Innevarande Period ]]/Försäljningsvinst[[#Totals],[Innevarande Period ]],0) -> 100.0% | I9: =IFERROR(Försäljningsvinst[[#Totals],[Innevarande Period ]]/Försäljningsvinst[[#Totals],[Föregående Period ]]-1,0) -> 12.5% | J9: =IFERROR(Försäljningsvinst[[#Totals],[Innevarande Period ]]/Försäljningsvinst[[#Totals],[Budget]]-1,0) -> -10.0%
B11: Försäljningskostnader
B12: Produkt/tjänst 1 | E12: 2 | F12: 3 | H12: =IFERROR(Försäljningskostnader[[#This Row],[Innevarande Period ]]/SUBTOTAL(109,Försäljningsvinst[[Innevarande Period ]]),0) -> 6.7% | I12: =IFERROR(Försäljningskostnader[[#This Row],[Innevarande Period ]]/Försäljningskostnader[[#This Row],[Föregående Period]]-1,0) -> 0 | J12: =IFERROR(Försäljningskostnader[[#This Row],[Innevarande Period ]]/Försäljningskostnader[[#This Row],[Budget]]-1,0) -> 50.0%
B13: Produkt/tjänst 2 | E13: 5 | F13: 3 | H13: =IFERROR(Försäljningskostnader[[#This Row],[Innevarande Period ]]/SUBTOTAL(109,Försäljningsvinst[[Innevarande Period ]]),0) -> 6.7% | I13: =IFERROR(Försäljningskostnader[[#This Row],[Innevarande Period ]]/Försäljningskostnader[[#This Row],[Föregående Period]]-1,0) -> 0 | J13: =IFERROR(Försäljningskostnader[[#This Row],[Innevarande Period ]]/Försäljningskostnader[[#This Row],[Budget]]-1,0) -> -40.0%
B14: Produkt/tjänst 3 | F14: 1 | H14: =IFERROR(Försäljningskostnader[[#This Row],[Innevarande Period ]]/SUBTOTAL(109,Försäljningsvinst[[Innevarande Period ]]),0) -> 2.2% | I14: =IFERROR(Försäljningskostnader[[#This Row],[Innevarande Period ]]/Försäljningskostnader[[#This Row],[Föregående Period]]-1,0) -> 0 | J14: =IFERROR(Försäljningskostnader[[#This Row],[Innevarande Period ]]/Försäljningskostnader[[#This Row],[Budget]]-1,0) -> 0
B15: Produkt/tjänst 4 | H15: =IFERROR(Försäljningskostnader[[#This Row],[Innevarande Period ]]/SUBTOTAL(109,Försäljningsvinst[[Innevarande Period ]]),0) -> 0 | I15: =IFERROR(Försäljningskostnader[[#This Row],[Innevarande Period ]]/Försäljningskostnader[[#This Row],[Föregående Period]]-1,0) -> 0 | J15: =IFERROR(Försäljningskostnader[[#This Row],[Innevarande Period ]]/Försäljningskostnader[[#This Row],[Budget]]-1,0) -> 0
B16: Summa | D16: =SUBTOTAL(109,Försäljningskostnader[Föregående Period]) -> 0 | E16: =SUBTOTAL(109,Försäljningskostnader[Budget]) -> 7 | F16: =SUBTOTAL(109,Försäljningskostnader[[Innevarande Period ]]) -> 7 | H16: =IFERROR(Försäljningskostnader[[#Totals],[Innevarande Period ]]/SUBTOTAL(109,Försäljningsvinst[[Innevarande Period ]]),0) -> 15.6% | I16: =IFERROR(Försäljningskostnader[[#Totals],[Innevarande Period ]]/Försäljningskostnader[[#Totals],[Föregående Period]]-1,0) -> 0 | J16: =IFERROR(Försäljningskostnader[[#Totals],[Innevarande Period ]]/Försäljningskostnader[[#Totals],[Budget]]-1,0) -> 0
B18: Bruttovinst | D18: =SUM(Försäljningsvinst[[Föregående Period ]])-SUM(Försäljningskostnader[Föregående Period]) -> 40 | E18: =SUM(Försäljningsvinst[Budget])-SUM(Försäljningskostnader[Budget]) -> 43 | F18: =SUM(Försäljningsvinst[[Innevarande Period ]])-SUM(Försäljningskostnader[[Innevarande Period ]]) -> 38 | H18: =IFERROR(F18/SUBTOTAL(109,Försäljningsvinst[[Innevarande Period ]]),0) -> 84.4% | I18: =IFERROR(F18/D18-1,0) -> -5.0% | J18: =IFERROR(F18/E18-1,0) -> -11.6%
B20: Verksamhetskostnader: försäljning och marknadsföring
B21: Annonsering | E21: 22 | F21: 19 | H21: =IFERROR(Försäljning_och_marknadsföring[[#This Row],[Innevarande Period ]]/SUBTOTAL(109,Försäljningsvinst[[Innevarande Period ]]),0) -> 42.2% | I21: =IFERROR(Försäljning_och_marknadsföring[[#This Row],[Innevarande Period ]]/Försäljning_och_marknadsföring[[#This Row],[Föregående Period]]-1,0) -> 0 | J21: =IFERROR(Försäljning_och_marknadsföring[[#This Row],[Innevarande Period ]]/Försäljning_och_marknadsföring[[#This Row],[Budget]]-1,0) -> -13.6%
B22: Direktmarknadsföring | H22: =IFERROR(Försäljning_och_marknadsföring[[#This Row],[Innevarande Period ]]/SUBTOTAL(109,Försäljningsvinst[[Innevarande Period ]]),0) -> 0 | I22: =IFERROR(Försäljning_och_marknadsföring[[#This Row],[Innevarande Period ]]/Försäljning_och_marknadsföring[[#This Row],[Föregående Period]]-1,0) -> 0 | J22: =IFERROR(Försäljning_och_marknadsföring[[#This Row],[Innevarande Period ]]/Försäljning_och_marknadsföring[[#This Row],[Budget]]-1,0) -> 0
B23: Övriga utgifter (anges) | H23: =IFERROR(Försäljning_och_marknadsföring[[#This Row],[Innevarande Period ]]/SUBTOTAL(109,Försäljningsvinst[[Innevarande Period ]]),0) -> 0 | I23: =IFERROR(Försäljning_och_marknadsföring[[#This Row],[Innevarande Period ]]/Försäljning_och_marknadsföring[[#This Row],[Föregående Period]]-1,0) -> 0 | J23: =IFERROR(Försäljning_och_marknadsföring[[#This Row],[Innevarande Period ]]/Försäljning_och_marknadsföring[[#This Row],[Budget]]-1,0) -> 0
B24: Summa | D24: =SUBTOTAL(109,Försäljning_och_marknadsföring[Föregående Period]) -> 0 | E24: =SUBTOTAL(109,Försäljning_och_marknadsföring[Budget]) -> 22 | F24: =SUBTOTAL(109,Försäljning_och_marknadsföring[[Innevarande Period ]]) -> 19 | H24: =IFERROR(Försäljning_och_marknadsföring[[#Totals],[Innevarande Period ]]/SUBTOTAL(109,Försäljningsvinst[[Innevarande Period ]]),0) -> 42.2% | I24: =IFERROR(Försäljning_och_marknadsföring[[#Totals],[Innevarande Period ]]/Försäljning_och_marknadsföring[[#Totals],[Föregående Period]]-1,0) -> 0 | J24: =IFERROR(Försäljning_och_marknadsföring[[#Totals],[Innevarande Period ]]/Försäljning_och_marknadsföring[[#Totals],[Budget]]-1,0) -> -13.6%
B26: Verksamhetskostnader: allmänna och administrativa
B27: Löner | E27: 56 | F27: 51 | H27: =IFERROR(Allmänna_och_administrativa[[#This Row],[Innevarande Period ]]/SUBTOTAL(109,Försäljningsvinst[[Innevarande Period ]]),0) -> 113.3% | I27: =IFERROR(Allmänna_och_administrativa[[#This Row],[Innevarande Period ]]/Allmänna_och_administrativa[[#This Row],[Föregående Period]]-1,0) -> 0 | J27: =IFERROR(Allmänna_och_administrativa[[#This Row],[Innevarande Period ]]/Allmänna_och_administrativa[[#This Row],[Budget]]-1,0) -> -8.9%
B28: Externa tjänster | H28: =IFERROR(Allmänna_och_administrativa[[#This Row],[Innevarande Period ]]/SUBTOTAL(109,Försäljningsvinst[[Innevarande Period ]]),0) -> 0 | I28: =IFERROR(Allmänna_och_administrativa[[#This Row],[Innevarande Period ]]/Allmänna_och_administrativa[[#This Row],[Föregående Period]]-1,0) -> 0 | J28: =IFERROR(Allmänna_och_administrativa[[#This Row],[Innevarande Period ]]/Allmänna_och_administrativa[[#This Row],[Budget]]-1,0) -> 0
B29: Material | H29: =IFERROR(Allmänna_och_administrativa[[#This Row],[Innevarande Period ]]/SUBTOTAL(109,Försäljningsvinst[[Innevarande Period ]]),0) -> 0 | I29: =IFERROR(Allmänna_och_administrativa[[#This Row],[Innevarande Period ]]/Allmänna_och_administrativa[[#This Row],[Föregående Period]]-1,0) -> 0 | J29: =IFERROR(Allmänna_och_administrativa[[#This Row],[Innevarande Period ]]/Allmänna_och_administrativa[[#This Row],[Budget]]-1,0) -> 0
B30: Måltider och nöjen | H30: =IFERROR(Allmänna_och_administrativa[[#This Row],[Innevarande Period ]]/SUBTOTAL(109,Försäljningsvinst[[Innevarande Period ]]),0) -> 0 | I30: =IFERROR(Allmänna_och_administrativa[[#This Row],[Innevarande Period ]]/Allmänna_och_administrativa[[#This Row],[Föregående Period]]-1,0) -> 0 | J30: =IFERROR(Allmänna_och_administrativa[[#This Row],[Innevarande Period ]]/Allmänna_och_administrativa[[#This Row],[Budget]]-1,0) -> 0
B31: Hyra | H31: =IFERROR(Allmänna_och_administrativa[[#This Row],[Innevarande Period ]]/SUBTOTAL(109,Försäljningsvinst[[Innevarande Period ]]),0) -> 0 | I31: =IFERROR(Allmänna_och_administrativa[[#This Row],[Innevarande Period ]]/Allmänna_och_administrativa[[#This Row],[Föregående Period]]-1,0) -> 0 | J31: =IFERROR(Allmänna_och_administrativa[[#This Row],[Innevarande Period ]]/Allmänna_och_administrativa[[#This Row],[Budget]]-1,0) -> 0
B32: Telefon | H32: =IFERROR(Allmänna_och_administrativa[[#This Row],[Innevarande Period ]]/SUBTOTAL(109,Försäljningsvinst[[Innevarande Period ]]),0) -> 0 | I32: =IFERROR(Allmänna_och_administrativa[[#This Row],[Innevarande Period ]]/Allmänna_och_administrativa[[#This Row],[Föregående Period]]-1,0) -> 0 | J32: =IFERROR(Allmänna_och_administrativa[[#This Row],[Innevarande Period ]]/Allmänna_och_administrativa[[#This Row],[Budget]]-1,0) -> 0
B33: El, vatten och avfallshantering | H33: =IFERROR(Allmänna_och_administrativa[[#This Row],[Innevarande Period ]]/SUBTOTAL(109,Försäljningsvinst[[Innevarande Period ]]),0) -> 0 | I33: =IFERROR(Allmänna_och_administrativa[[#This Row],[Innevarande Period ]]/Allmänna_och_administrativa[[#This Row],[Föregående Period]]-1,0) -> 0 | J33: =IFERROR(Allmänna_och_administrativa[[#This Row],[Innevarande Period ]]/Allmänna_och_administrativa[[#This Row],[Budget]]-1,0) -> 0
B34: Avskrivningar | H34: =IFERROR(Allmänna_och_administrativa[[#This Row],[Innevarande Period ]]/SUBTOTAL(109,Försäljningsvinst[[Innevarande Period ]]),0) -> 0 | I34: =IFERROR(Allmänna_och_administrativa[[#This Row],[Innevarande Period ]]/Allmänna_och_administrativa[[#This Row],[Föregående Period]]-1,0) -> 0 | J34: =IFERROR(Allmänna_och_administrativa[[#This Row],[Innevarande Period ]]/Allmänna_och_administrativa[[#This Row],[Budget]]-1,0) -> 0
B35: Försäkring | H35: =IFERROR(Allmänna_och_administrativa[[#This Row],[Innevarande Period ]]/SUBTOTAL(109,Försäljningsvinst[[Innevarande Period ]]),0) -> 0 | I35: =IFERROR(Allmänna_och_administrativa[[#This Row],[Innevarande Period ]]/Allmänna_och_administrativa[[#This Row],[Föregående Period]]-1,0) -> 0 | J35: =IFERROR(Allmänna_och_administrativa[[#This Row],[Innevarande Period ]]/Allmänna_och_administrativa[[#This Row],[Budget]]-1,0) -> 0
B36: Reparationer och underhåll | H36: =IFERROR(Allmänna_och_administrativa[[#This Row],[Innevarande Period ]]/SUBTOTAL(109,Försäljningsvinst[[Innevarande Period ]]),0) -> 0 | I36: =IFERROR(Allmänna_och_administrativa[[#This Row],[Innevarande Period ]]/Allmänna_och_administrativa[[#This Row],[Föregående Period]]-1,0) -> 0 | J36: =IFERROR(Allmänna_och_administrativa[[#This Row],[Innevarande Period ]]/Allmänna_och_administrativa[[#This Row],[Budget]]-1,0) -> 0
B37: Övriga utgifter (anges) | H37: =IFERROR(Allmänna_och_administrativa[[#This Row],[Innevarande Period ]]/SUBTOTAL(109,Försäljningsvinst[[Innevarande Period ]]),0) -> 0 | I37: =IFERROR(Allmänna_och_administrativa[[#This Row],[Innevarande Period ]]/Allmänna_och_administrativa[[#This Row],[Föregående Period]]-1,0) -> 0 | J37: =IFERROR(Allmänna_och_administrativa[[#This Row],[Innevarande Period ]]/Allmänna_och_administrativa[[#This Row],[Budget]]-1,0) -> 0
B38: Summa | D38: =SUBTOTAL(109,Allmänna_och_administrativa[Föregående Period]) -> 0 | E38: =SUBTOTAL(109,Allmänna_och_administrativa[Budget]) -> 56 | F38: =SUBTOTAL(109,Allmänna_och_administrativa[[Innevarande Period ]]) -> 51 | H38: =IFERROR(Allmänna_och_administrativa[[#Totals],[Innevarande Period ]]/SUBTOTAL(109,Försäljningsvinst[[Innevarande Period ]]),0) -> 113.3% | I38: =IFERROR(Allmänna_och_administrativa[[#Totals],[Innevarande Period ]]/Allmänna_och_administrativa[[#Totals],[Föregående Period]]-1,0) -> 0 | J38: =IFERROR(Allmänna_och_administrativa[[#Totals],[Innevarande Period ]]/Allmänna_och_administrativa[[#Totals],[Budget]]-1,0) -> -8.9%
B40: Verksamhetskostnad: övrig
B41: Övrig driftskostnad 1 | E41: 10 | H41: =IFERROR(Kategorin_övrigt_driftskostnader[[#This Row],[Innevarande Period ]]/SUBTOTAL(109,Försäljningsvinst[[Innevarande Period ]]),0) -> 0 | I41: =IFERROR(Kategorin_övrigt_driftskostnader[[#This Row],[Innevarande Period ]]/Kategorin_övrigt_driftskostnader[[#This Row],[Föregående Period]]-1,0) -> 0 | J41: =IFERROR(Kategorin_övrigt_driftskostnader[[#This Row],[Innevarande Period ]]/Kategorin_övrigt_driftskostnader[[#This Row],[Budget]]-1,0) -> -100.0%
B42: Övrig driftskostnad 2 | H42: =IFERROR(Kategorin_övrigt_driftskostnader[[#This Row],[Innevarande Period ]]/SUBTOTAL(109,Försäljningsvinst[[Innevarande Period ]]),0) -> 0 | I42: =IFERROR(Kategorin_övrigt_driftskostnader[[#This Row],[Innevarande Period ]]/Kategorin_övrigt_driftskostnader[[#This Row],[Föregående Period]]-1,0) -> 0 | J42: =IFERROR(Kategorin_övrigt_driftskostnader[[#This Row],[Innevarande Period ]]/Kategorin_övrigt_driftskostnader[[#This Row],[Budget]]-1,0) -> 0
B43: Summa | D43: =SUBTOTAL(109,Kategorin_övrigt_driftskostnader[Föregående Period]) -> 0 | E43: =SUBTOTAL(109,Kategorin_övrigt_driftskostnader[Budget]) -> 10 | F43: =SUBTOTAL(109,Kategorin_övrigt_driftskostnader[[Innevarande Period ]]) -> 0 | H43: =IFERROR(Kategorin_övrigt_driftskostnader[[#Totals],[Innevarande Period ]]/SUBTOTAL(109,Försäljningsvinst[[Innevarande Period ]]),0) -> 0 | I43: =IFERROR(Kategorin_övrigt_driftskostnader[[#Totals],[Innevarande Period ]]/Kategorin_övrigt_driftskostnader[[#Totals],[Föregående Period]]-1,0) -> 0 | J43: =IFERROR(Kategorin_övrigt_driftskostnader[[#Totals],[Innevarande Period ]]/Kategorin_övrigt_driftskostnader[[#Totals],[Budget]]-1,0) -> -100.0%
B45: Summa driftskostnader | D45: =SUM(Försäljning_och_marknadsföring[Föregående Period],Allmänna_och_administrativa[Föregående Period],Kategorin_övrigt_driftskostnader[Föregående Period]) -> 0 | E45: =SUM(Försäljning_och_marknadsföring[Budget],Allmänna_och_administrativa[Budget],Kategorin_övrigt_driftskostnader[Budget]) -> 88 | F45: =SUM(Försäljning_och_marknadsföring[[Innevarande Period ]],Allmänna_och_administrativa[[Innevarande Period ]],Kategorin_övrigt_driftskostnader[[Innevarande Period ]]) -> 70 | H45: =IFERROR(F45/SUBTOTAL(109,Försäljningsvinst[[Innevarande Period ]]),0) -> 155.6% | I45: =IFERROR(F45/D45-1,0) -> 0 | J45: =IFERROR(F45/E45-1,0) -> -20.5%
B47: Inkomster från verksamheten | D47: =D18-D45 -> 40 | E47: =E18-E45 -> -45 | F47: =F18-F45 -> -32 | H47: =IFERROR(F47/SUBTOTAL(109,Försäljningsvinst[[Innevarande Period ]]),0) -> -71.1% | I47: =IFERROR(IF(D47=F47,0,IF(F47>D47,ABS((F47/D47)-1),IF(AND(F47<D47,D47<0),-((F47/D47)-1),(F47/D47)-1))),0) -> -180.0% | J47: =IFERROR(IF(E47=F47,0,IF(F47>E47,ABS((F47/E47)-1),IF(AND(F47<E47,E47<0),-((F47/E47)-1),(F47/E47)-1))),0) -> 28.9%
B49: Övriga inkomster | H49: =IFERROR(F49/SUBTOTAL(109,Försäljningsvinst[[Innevarande Period ]]),0) -> 0 | I49: =IFERROR(F49/D49-1,0) -> 0 | J49: =IFERROR(F49/E49-1,0) -> 0
B51: Moms
B52: Inkomstskatt | E52: 32 | F52: 30 | H52: =IFERROR(Moms[[#This Row],[Innevarande Period ]]/SUBTOTAL(109,Försäljningsvinst[[Innevarande Period ]]),0) -> 66.7% | I52: =IFERROR(Moms[[#This Row],[Innevarande Period ]]/Moms[[#This Row],[Föregående Period]]-1,0) -> 0 | J52: =IFERROR(Moms[[#This Row],[Innevarande Period ]]/Moms[[#This Row],[Budget]]-1,0) -> -6.3%
B53: Arbetsgivaravgifter | H53: =IFERROR(Moms[[#This Row],[Innevarande Period ]]/SUBTOTAL(109,Försäljningsvinst[[Innevarande Period ]]),0) -> 0 | I53: =IFERROR(Moms[[#This Row],[Innevarande Period ]]/Moms[[#This Row],[Föregående Period]]-1,0) -> 0 | J53: =IFERROR(Moms[[#This Row],[Innevarande Period ]]/Moms[[#This Row],[Budget]]-1,0) -> 0
B54: Fastighetsskatt | H54: =IFERROR(Moms[[#This Row],[Innevarande Period ]]/SUBTOTAL(109,Försäljningsvinst[[Innevarande Period ]]),0) -> 0 | I54: =IFERROR(Moms[[#This Row],[Innevarande Period ]]/Moms[[#This Row],[Föregående Period]]-1,0) -> 0 | J54: =IFERROR(Moms[[#This Row],[Innevarande Period ]]/Moms[[#This Row],[Budget]]-1,0) -> 0
B55: Övriga skatter (anges) | H55: =IFERROR(Moms[[#This Row],[Innevarande Period ]]/SUBTOTAL(109,Försäljningsvinst[[Innevarande Period ]]),0) -> 0 | I55: =IFERROR(Moms[[#This Row],[Innevarande Period ]]/Moms[[#This Row],[Föregående Period]]-1,0) -> 0 | J55: =IFERROR(Moms[[#This Row],[Innevarande Period ]]/Moms[[#This Row],[Budget]]-1,0) -> 0
B56: Summa | D56: =SUBTOTAL(109,Moms[Föregående Period]) -> 0 | E56: =SUBTOTAL(109,Moms[Budget]) -> 32 | F56: =SUBTOTAL(109,Moms[[Innevarande Period ]]) -> 30 | H56: =IFERROR(Moms[[#Totals],[Innevarande Period ]]/SUBTOTAL(109,Försäljningsvinst[[Innevarande Period ]]),0) -> 66.7% | I56: =IFERROR(Moms[[#Totals],[Innevarande Period ]]/Moms[[#Totals],[Föregående Period]]-1,0) -> 0 | J56: =IFERROR(Moms[[#Totals],[Innevarande Period ]]/Moms[[#Totals],[Budget]]-1,0) -> -6.3%
B58: Nettovinst | D58: =D47+D49-Moms[[#Totals],[Föregående Period]] -> 40 | E58: =E47+E49-Moms[[#Totals],[Föregående Period]] -> -45 | F58: =F47+F49-Moms[[#Totals],[Föregående Period]] -> -32 | H58: =IFERROR(F58/SUBTOTAL(109,Försäljningsvinst[[Innevarande Period ]]),0) -> -71.1% | I58: =IFERROR(IF(D58=F58,0,IF(F58>D58,ABS((F58/D58)-1),IF(AND(F58<D58,D58<0),-((F58/D58)-1),(F58/D58)-1))),0) -> -180.0% | J58: =IFERROR(IF(E58=F58,0,IF(F58>E58,ABS((F58/E58)-1),IF(AND(F58<E58,E58<0),-((F58/E58)-1),(F58/E58)-1))),0) -> 28.9%
B59: Bruttomarginal | D59: =D18/SUM(Försäljningsvinst[[Föregående Period ]]) -> 100.0% | E59: =E18/SUM(Försäljningsvinst[Budget]) -> 86.0% | F59: =F18/SUM(Försäljningsvinst[[Innevarande Period ]]) -> 84.4%
B60: Lönsamhetstal | D60: =D58/SUM(Försäljningsvinst[[Föregående Period ]]) -> 100.0% | E60: =E58/SUM(Försäljningsvinst[Budget]) -> -90.0% | F60: =F58/SUM(Försäljningsvinst[[Innevarande Period ]]) -> -71.1%
